bitfinex/quotes_BTCUSD_20260101
["timestamp","ask_amount","ask_price","bid_price","bid_amount"]
[1767284111728,0.07711435,87988.0,87979.0,0.01136634]
[1767284111943,0.0114,87994.0,87980.0,0.01136621]
[1767284112069,0.02452652,87993.0,87983.0,0.07707517]
[1767284112270,0.02452652,87992.0,87983.0,0.088441]
[1767284112678,0.02452652,87992.0,87984.0,0.08844087]
[1767284112877,0.0114,87993.0,87986.0,0.01136544]
[1767284113076,0.0114,87993.0,87988.0,0.01136518]
[1767284113318,0.0114,87993.0,87987.0,0.01136531]
[1767284113698,0.0114,87993.0,87988.0,0.01136518]
[1767284114139,0.0114,87993.0,87987.0,0.01136531]
[1767284114516,0.0114,87993.0,87986.0,0.01136544]
[1767284114929,0.0114,87993.0,87987.0,0.01136531]
[1767284115110,0.0114,87997.0,87987.0,0.08844048]
[1767284115291,0.02452954,87996.0,87988.0,0.01136518]
[1767284115708,0.02452954,87996.0,87987.0,0.08844048]
[1767284115909,0.02452954,87996.0,87986.0,0.01136544]
[1767284116265,0.02452954,87996.0,87985.0,0.01136557]
[1767284116425,0.02452954,87996.0,87986.0,0.01136544]
[1767284116624,0.02452954,87996.0,87987.0,0.01136531]
[1767284116869,0.02452954,87996.0,87988.0,0.01136518]
[1767284117071,0.02452954,87996.0,87987.0,0.01136531]
[1767284117690,0.02452954,87996.0,87986.0,0.01136544]
[1767284118556,0.02452954,87996.0,87987.0,0.06819157]
[1767284118734,0.0114,87997.0,87989.0,0.01136505]
[1767284118876,0.0114,87997.0,87990.0,0.01136492]
[1767284119077,0.0114,87997.0,87991.0,0.01136479]
[1767284119305,0.0114,87997.0,87990.0,0.01136492]
[1767284119957,0.0114,87997.0,87991.0,0.01136479]
[1767284120615,0.0114,87997.0,87992.0,0.01136466]
[1767284120820,0.0114,87997.0,87991.0,0.01136479]
[1767284121427,0.0114,87997.0,87992.0,0.01136466]
[1767284121888,0.0114,87997.0,87991.0,0.01136479]
[1767284122514,0.0001473,88007.0,87998.0,0.01136389]
[1767284122710,0.0001473,88007.0,88000.0,0.01136363]
[1767284122965,0.0001473,88007.0,88003.0,0.01136324]
[1767284123237,0.0001473,88007.0,88004.0,0.01136311]
[1767284124914,0.0001473,88007.0,88003.0,0.01136324]
[1767284125264,0.0001473,88007.0,88004.0,0.01136311]
[1767284125782,0.0001473,88007.0,88001.0,0.0113635]
[1767284125998,0.001099,88004.0,88001.0,0.0113635]
[1767284126502,0.0001473,88007.0,88002.0,0.01136337]
[1767284126743,0.0001473,88007.0,88000.0,0.01136363]
[1767284126941,0.0001473,88007.0,87996.0,0.05682073]
[1767284127142,0.0001473,88007.0,87996.0,0.01136415]
[1767284127356,0.0001473,88007.0,87996.0,0.06818442]
[1767284127554,0.0001473,88007.0,87998.0,0.01136389]
[1767284127909,0.0001473,88007.0,88000.0,0.01136363]
[1767284129015,0.0001473,88007.0,87999.0,0.01136376]
[1767284129234,0.0001473,88007.0,87998.0,0.01136389]
[1767284129657,0.0001473,88007.0,87997.0,0.01136402]
[1767284129852,0.0001473,88007.0,87998.0,0.01136389]
[1767284131054,0.0001473,88007.0,87997.0,0.01136402]
[1767284131298,0.0001473,88007.0,87998.0,0.01136389]
[1767284131625,0.0001473,88007.0,88000.0,0.01136363]
[1767284131815,0.0001473,88007.0,87998.0,0.01136389]
[1767284131994,0.0001473,88007.0,87999.0,0.01136376]
[1767284132176,0.0001473,88007.0,87998.0,0.01136389]
[1767284132755,0.0001473,88007.0,87999.0,0.01136376]
[1767284132962,0.0001473,88007.0,87998.0,0.01136389]
[1767284133183,0.0001473,88007.0,87999.0,0.01136376]
[1767284133702,0.001099,87999.0,87993.0,0.03412148]
[1767284133876,0.001099,87999.0,87992.0,0.02276466]
[1767284134215,0.07546573,88003.0,87992.0,0.0114]
[1767284134956,0.07546573,88003.0,87992.0,0.02276466]
[1767284137080,0.07546573,88003.0,87993.0,0.01136454]
[1767284137286,0.07546573,88003.0,87994.0,0.01136441]
[1767284137729,0.07546573,88003.0,87995.0,0.01136428]
[1767284138342,0.07546573,88003.0,87994.0,0.01136441]
[1767284138553,0.07546573,88003.0,87995.0,0.01136428]
[1767284138955,0.07546573,88003.0,87994.0,0.01136441]
[1767284139182,0.07546573,88003.0,87995.0,0.01136428]
[1767284139610,0.07546573,88003.0,87996.0,0.01136415]
[1767284139822,0.07546573,88003.0,87995.0,0.01136428]
[1767284140042,0.07546573,88003.0,87994.0,0.01136441]
[1767284140252,0.07546573,88003.0,87994.0,0.06818639]
[1767284140395,0.07546573,88003.0,87993.0,0.01136454]
[1767284140923,0.07546573,88003.0,87994.0,0.01136441]
[1767284141569,0.07546573,88003.0,87993.0,0.01136454]
[1767284142438,0.07546573,88003.0,87994.0,0.01136441]
[1767284142648,0.07546573,88003.0,87993.0,0.01136454]
[1767284143326,0.07546573,88003.0,87992.0,0.0114]
[1767284143534,0.07546573,88003.0,87993.0,0.01136454]
[1767284143742,0.07546573,88003.0,87992.0,0.02276466]
[1767284143925,0.07546573,88003.0,87993.0,0.01136454]
[1767284144573,0.07546573,88003.0,87994.0,0.01136441]
[1767284144997,0.08701303,88007.0,87993.0,0.01136454]
[1767284145220,0.07546573,88005.0,87991.0,0.01136479]
[1767284145436,0.000549,87993.0,87987.0,0.01136531]
[1767284145648,0.000549,87993.0,87988.0,0.03412338]
[1767284145887,0.07546573,87998.0,87988.0,0.03412338]
[1767284146099,0.07546573,87998.0,87989.0,0.01136505]
[1767284146312,0.07546573,87998.0,87990.0,0.01136492]
[1767284146534,0.07546573,87998.0,87988.0,0.04548856]
[1767284146771,0.07546573,87998.0,87986.0,0.0114]
[1767284146989,0.07546573,87998.0,87989.0,0.03412338]
[1767284150002,0.07546573,87998.0,87989.0,0.04548843]
[1767284150224,0.07546573,87998.0,87990.0,0.01136492]
[1767284150431,0.07546573,87998.0,87989.0,0.04548843]
[1767284150766,0.07546573,87998.0,87990.0,0.01136492]
[1767284151342,0.07546573,87998.0,87989.0,0.04548843]
[1767284151754,0.07546573,87998.0,87989.0,0.03412338]
[1767284153171,0.07546573,87998.0,87988.0,0.01136518]
[1767284153398,0.07546573,87998.0,87988.0,0.03412338]
[1767284153607,0.07546573,87998.0,87988.0,0.04548856]
[1767284153813,0.07546573,87998.0,87988.0,0.1023142]
[1767284154022,0.07546573,87998.0,87988.0,0.04548856]
[1767284154229,0.07546573,87998.0,87989.0,0.01136505]
[1767284154438,0.07546573,87998.0,87988.0,0.04548856]
[1767284154897,0.07546573,87998.0,87989.0,0.01136505]
[1767284155519,0.07546573,87998.0,87988.0,0.04548856]
[1767284156451,0.07546573,87998.0,87989.0,0.01136505]
[1767284157089,0.07546573,87998.0,87988.0,0.04548856]
[1767284157383,0.07546573,87998.0,87989.0,0.01136505]
[1767284157556,0.07546573,87998.0,87990.0,0.01136492]
[1767284158330,0.07546573,87998.0,87988.0,0.04548856]
[1767284158740,0.07546573,87998.0,87988.0,0.03412338]
[1767284159055,0.07221351,88005.0,87988.0,0.03412338]
[1767284159261,0.07221351,88003.0,87988.0,0.03412338]
[1767284159459,0.07221351,88001.0,87988.0,0.03412338]
[1767284159661,0.02454679,88000.0,87988.0,0.03412338]
[1767284159971,0.02454679,88000.0,87988.0,0.04548856]
[1767284160144,0.02454679,88000.0,87989.0,0.01136505]
[1767284160347,0.02454679,88000.0,87988.0,0.04548856]
[1767284160977,0.0967603,88000.0,87988.0,0.04548856]
[1767284161190,0.07221351,88000.0,87988.0,0.03412338]
[1767284161402,0.51626022,88000.0,87988.0,0.03412338]
[1767284161623,0.07221351,87995.0,87986.0,0.0114]
[1767284161833,0.07221351,87993.0,87981.0,0.0114]
[1767284162066,0.0245469,87994.0,87981.0,0.0114]
[1767284162067,0.07221351,87990.0,87981.0,0.0114]
[1767284165271,0.07221351,87987.0,87976.0,0.0001473]
[1767284165479,0.07221351,87983.0,87976.0,9.046e-05]
[1767284166355,0.07221351,87974.0,87959.0,0.0001473]
[1767284166583,0.07221351,87969.0,87959.0,0.0001473]
[1767284169063,0.0114,87973.0,87959.0,0.01151623]
[1767284169450,0.44404671,87970.0,87969.0,0.000549]
[1767284169636,0.44404671,87970.0,87960.0,0.0113688]
[1767284169637,0.07221351,87972.0,87960.0,0.0113688]
[1767284170104,0.07221351,87972.0,87964.0,0.01136828]
[1767284170316,0.07166351,87972.0,87966.0,0.01136802]
[1767284170542,0.0114,87975.0,87967.0,0.08745704]
[1767284170745,0.01156751,87982.0,87968.0,0.08745692]
[1767284170952,0.02446416,87981.0,87968.0,0.08745692]
[1767284171166,0.0114,87981.0,87968.0,0.08745692]
[1767284171377,0.0114,87980.0,87970.0,0.44404671]
[1767284171602,0.0114,87979.0,87967.0,0.01136789]
[1767284171808,0.0114,87978.0,87968.0,0.01136777]
[1767284174508,0.0114,87978.0,87967.0,0.01136789]
[1767284174923,0.0114,87978.0,87968.0,0.01136777]
[1767284175349,0.07221351,87981.0,87971.0,0.01136738]
[1767284175558,0.0114,87980.0,87973.0,0.01136712]
[1767284175762,0.08358153,87987.0,87973.0,0.01136712]
[1767284175963,0.0114,87986.0,87973.0,0.01136712]
[1767284176611,0.0114,87986.0,87972.0,0.01136725]
[1767284176823,0.0114,87986.0,87973.0,0.01136712]
[1767284177028,0.0114,87986.0,87974.0,0.01136699]
[1767284178441,0.44419401,87990.0,87978.0,0.01136647]
[1767284178442,0.0114,87985.0,87978.0,0.01136647]
[1767284178644,0.0114,87985.0,87973.0,0.14429185]
[1767284178906,0.0114,87985.0,87974.0,0.01136699]
[1767284179244,0.0114,87985.0,87973.0,0.08745627]
[1767284179805,0.0114,87985.0,87974.0,0.01136699]
[1767284180801,0.0114,87985.0,87975.0,0.01136686]
[1767284181426,0.0114,87985.0,87977.0,0.0113666]
[1767284181990,0.0001473,87990.0,87979.0,0.01136634]
[1767284182207,0.0114,87985.0,87981.0,0.01136609]
[1767284182356,0.0114,87988.0,87980.0,0.01136621]
[1767284182569,0.0114,87988.0,87978.0,0.01136647]
[1767284182767,0.0114,87988.0,87979.0,0.01136634]
[1767284183743,0.0114,87988.0,87980.0,0.01136621]
[1767284184389,0.0114,87988.0,87981.0,0.01136609]
[1767284184604,0.0114,87988.0,87979.0,0.01136634]
[1767284184820,0.0114,87988.0,87980.0,0.01136621]
[1767284185184,0.0114,87988.0,87981.0,0.01136609]
[1767284185389,0.0114,87988.0,87979.0,0.00809864]
[1767284185565,0.0114,87988.0,87981.0,0.01136609]
[1767284186934,0.0114,87988.0,87982.0,0.01136596]
[1767284187454,0.0114,87988.0,87983.0,0.01136583]
[1767284187812,0.0114,87988.0,87982.0,0.01136596]
[1767284188015,0.0114,87988.0,87981.0,0.01136609]
[1767284188215,0.0114,87988.0,87980.0,0.01136621]
[1767284188380,0.0114,87988.0,87981.0,0.01136609]
[1767284188792,0.0114,87988.0,87982.0,0.01136596]
[1767284190298,0.0114,87988.0,87980.0,0.01136621]
[1767284190556,0.0114,87988.0,87981.0,0.01136609]
[1767284191652,0.0114,87988.0,87982.0,0.01136596]
[1767284192085,0.0001473,87990.0,87985.0,0.08450093]
[1767284192282,0.0001473,87990.0,87986.0,0.01136544]
[1767284192493,0.0001473,87990.0,87986.0,0.07313536]
[1767284193130,0.0001473,87990.0,87985.0,0.01136557]
[1767284194524,0.0001473,87990.0,87984.0,0.0113657]
[1767284194685,0.0001473,87990.0,87982.0,0.01136596]
[1767284194887,0.0001473,87990.0,87983.0,0.01136583]
[1767284195284,0.0001473,87990.0,87984.0,0.0113657]
[1767284195913,0.0001473,87990.0,87986.0,0.01136544]
[1767284196477,0.0001473,87990.0,87985.0,0.01136557]
[1767284197052,0.0001473,87990.0,87986.0,0.01136544]
[1767284197193,0.0001473,87990.0,87987.0,0.01136531]
[1767284197391,0.0001473,87990.0,87986.0,0.08086611]
[1767284197622,0.0001473,87990.0,87988.0,0.07313536]
[1767284197826,0.0001473,87990.0,87988.0,0.12996106]
[1767284198030,0.0001473,87990.0,87988.0,0.07258636]
[1767284198192,0.0001473,87990.0,87986.0,0.06819262]
[1767284198393,0.0001473,87990.0,87987.0,0.01136531]
[1767284199088,0.0001473,87990.0,87987.0,0.08450067]
[1767284199334,0.0001473,87990.0,87987.0,0.01136531]
[1767284199954,0.0001473,87990.0,87985.0,0.01136557]
[1767284200168,0.0001473,87990.0,87986.0,0.01136544]
[1767284200372,0.0001473,87990.0,87983.0,0.01136583]
[1767284200528,0.0001473,87990.0,87984.0,0.0113657]
[1767284200737,0.0001473,87990.0,87985.0,0.01136557]
[1767284200934,0.0001473,87990.0,87986.0,0.01136544]
[1767284201941,0.0001473,87990.0,87985.0,0.01136557]
[1767284202560,0.0001473,87990.0,87984.0,0.0113657]
[1767284204393,0.0001473,87990.0,87985.0,0.01136557]
[1767284204555,0.0001473,87990.0,87984.0,0.0113657]
[1767284205158,0.0001473,87990.0,87983.0,0.01136583]
[1767284205993,0.0001473,87990.0,87982.0,0.08450132]
[1767284206594,0.07675955,87981.0,87972.0,0.02452259]
[1767284206952,0.07675955,87981.0,87963.0,0.01136841]
[1767284206953,0.0114,87980.0,87968.0,0.0114]
[1767284207152,0.07675955,87979.0,87963.0,0.01136841]
[1767284208195,0.07675955,87979.0,87964.0,0.01136828]
[1767284208596,0.07675955,87979.0,87965.0,0.01136815]
[1767284208935,0.07675955,87979.0,87964.0,0.01136828]
[1767284209287,0.07675955,87979.0,87965.0,0.01136815]
[1767284209621,0.07675955,87979.0,87963.0,0.01136841]
[1767284210490,0.07675955,87979.0,87964.0,0.01136828]
[1767284210691,0.08812589,87979.0,87960.0,0.45547635]
[1767284210898,0.01136686,87975.0,87959.0,0.0001473]
[1767284211118,0.07675955,87974.0,87959.0,0.01151623]
[1767284211316,0.07675955,87974.0,87959.0,0.0001473]
[1767284214352,0.07675955,87974.0,87960.0,0.0113688]
[1767284214573,0.07675955,87974.0,87961.0,0.01136867]
[1767284214782,0.07675955,87974.0,87962.0,0.01136854]
[1767284215184,0.07675955,87974.0,87963.0,0.01136841]
[1767284215574,0.07675955,87974.0,87962.0,0.01136854]
[1767284216709,0.07675955,87974.0,87963.0,0.01136841]
[1767284216914,0.07675955,87974.0,87962.0,0.01136854]
[1767284218259,0.07675955,87974.0,87960.0,0.0113688]
[1767284218657,0.07675955,87974.0,87959.0,0.01151623]
[1767284218821,0.07675955,87974.0,87960.0,0.0113688]
[1767284219610,0.07675955,87974.0,87959.0,0.0001473]
[1767284219828,0.08812654,87974.0,87959.0,0.0001473]
[1767284220041,0.07675955,87974.0,87959.0,0.0001473]
[1767284221699,0.08812654,87974.0,87959.0,0.0001473]
[1767284221895,0.44410755,87970.0,87959.0,0.0001473]
[1767284222103,0.07573759,87969.0,87959.0,0.0001473]
[1767284222307,0.07573759,87969.0,87959.0,3e-07]
[1767284223287,0.01136725,87972.0,87959.0,3e-07]
[1767284223288,0.07573759,87972.0,87959.0,3e-07]
[1767284223643,0.44410755,87970.0,87959.0,3e-07]
[1767284223844,0.07573759,87969.0,87959.0,3e-07]
[1767284225965,0.07573759,87969.0,87959.0,0.01136923]
[1767284226165,0.0114,87973.0,87959.0,3e-07]
[1767284226295,0.08713759,87973.0,87959.0,3e-07]
[1767284231555,0.07573759,87972.0,87959.0,3e-07]
[1767284231766,0.08710484,87972.0,87959.0,3e-07]
[1767284231950,0.07573759,87970.0,87959.0,3e-07]
[1767284232967,0.07573759,87969.0,87959.0,3e-07]
[1767284233127,0.08710574,87965.0,87959.0,3e-07]
[1767284233330,0.07573759,87963.0,87959.0,3e-07]
[1767284236873,0.0114,87964.0,87959.0,3e-07]
[1767284237088,0.01085,87964.0,87959.0,3e-07]
[1767284247894,0.01085,87964.0,87959.0,0.01136923]
[1767284248120,0.01085,87964.0,87959.0,3e-07]
[1767284248736,0.08445363,87964.0,87959.0,3e-07]
[1767284256735,0.08445363,87964.0,87952.0,0.01136983]
[1767284256736,0.08445363,87964.0,87951.0,0.01136996]
[1767284257202,0.08445363,87964.0,87952.0,0.01136983]
[1767284257413,0.08445363,87964.0,87954.0,0.01136957]
[1767284257624,0.08445363,87964.0,87956.0,0.01136932]
[1767284257987,0.08445363,87964.0,87957.0,0.01136919]
[1767284259001,0.08445363,87964.0,87956.0,0.01136932]
[1767284259973,0.08445363,87964.0,87955.0,0.0682162]
[1767284260180,0.0114,87964.0,87960.0,0.0113688]
[1767284260314,0.0114,87964.0,87958.0,0.06821401]
[1767284261293,0.0114,87964.0,87960.0,0.0113688]
[1767284261630,0.0114,87964.0,87959.0,0.01136893]
[1767284262040,0.0114,87964.0,87960.0,0.0113688]
[1767284262501,0.0114,87964.0,87959.0,0.01136893]
[1767284263036,0.0114,87964.0,87958.0,0.01136906]
[1767284265781,0.0114,87964.0,87959.0,0.06821349]
[1767284266330,0.0114,87964.0,87958.0,0.01136906]
[1767284266764,0.0114,87964.0,87959.0,0.01136893]
[1767284268175,0.0114,87964.0,87958.0,0.01136906]
[1767284268424,0.0114,87964.0,87959.0,0.01136893]
[1767284269168,0.0114,87964.0,87958.0,0.01136906]
[1767284269985,0.0114,87964.0,87957.0,0.01136919]
[1767284270207,0.0114,87964.0,87958.0,0.01136906]
[1767284270813,0.0114,87964.0,87957.0,0.01136919]
[1767284271014,0.0114,87964.0,87956.0,0.01136932]
[1767284271209,0.0114,87964.0,87957.0,0.01136919]
[1767284271827,0.0114,87964.0,87958.0,0.01136906]
[1767284272370,0.02454766,87963.0,87955.0,0.01136945]
[1767284272996,0.02454766,87963.0,87954.0,0.01136957]
[1767284273467,0.02454766,87963.0,87956.0,0.01136932]
[1767284273641,0.02454766,87963.0,87957.0,0.01136919]
[1767284273856,0.02454766,87963.0,87956.0,0.01136932]
[1767284276729,0.02454766,87963.0,87958.0,0.01136906]
[1767284277433,0.02454766,87963.0,87959.0,0.01136893]
[1767284277573,0.02454766,87963.0,87958.0,0.01136906]
[1767284278331,0.02454766,87963.0,87959.0,0.01136893]
[1767284278917,0.02454766,87963.0,87958.0,0.01136906]
[1767284279104,0.0114,87966.0,87959.0,0.01136893]
[1767284279443,0.02454875,87965.0,87958.0,0.01136906]
[1767284279646,0.02454875,87965.0,87957.0,0.01136919]
[1767284280221,0.02454875,87965.0,87958.0,0.01136906]
[1767284280420,0.02454875,87965.0,87957.0,0.01136919]
[1767284281456,0.02454875,87965.0,87956.0,0.01136932]
[1767284281699,0.02454875,87965.0,87957.0,0.01136919]
[1767284282039,0.02454875,87965.0,87958.0,0.01136906]
[1767284282456,0.02454875,87965.0,87957.0,0.01136919]
[1767284282662,0.02454875,87965.0,87958.0,0.01136906]
[1767284283182,0.02454875,87965.0,87960.0,0.07961774]
[1767284283575,0.02454875,87965.0,87960.0,0.0113688]
[1767284283857,0.03065424,87972.0,87959.0,0.01136893]
[1767284283858,0.02454875,87964.0,87959.0,0.01136893]
[1767284284059,0.02454875,87963.0,87959.0,0.01136893]
[1767284284174,0.0114,87969.0,87959.0,0.01136893]
[1767284284382,0.02455199,87968.0,87959.0,0.01136893]
[1767284284818,0.02455199,87968.0,87958.0,0.01136906]
[1767284285019,0.02455199,87968.0,87959.0,0.01136893]
[1767284285218,0.02455199,87968.0,87960.0,0.0113688]
[1767284285816,0.02455199,87968.0,87959.0,0.01136893]
[1767284286267,0.02455199,87968.0,87960.0,0.0113688]
[1767284286700,0.02455199,87968.0,87959.0,0.01136893]
[1767284287248,0.000549,87959.0,87956.0,0.06824894]
[1767284287458,0.000549,87959.0,87953.0,0.06821793]
[1767284287459,0.000549,87959.0,87953.0,0.0113697]
[1767284287662,0.09213673,87967.0,87953.0,0.0113697]
[1767284287866,0.02455199,87966.0,87954.0,0.02276957]
[1767284288060,0.02455199,87966.0,87956.0,0.01136932]
[1767284288382,0.02455199,87966.0,87955.0,0.01136945]
[1767284289044,0.02455199,87966.0,87954.0,0.0114]
[1767284289252,0.06758474,87965.0,87954.0,0.0114]
[1767284289452,0.06758474,87963.0,87954.0,0.010851]
[1767284290293,0.06758474,87963.0,87954.0,0.02222057]
[1767284290496,0.06758474,87963.0,87955.0,0.01136945]
[1767284290719,0.06758474,87963.0,87954.0,0.02222057]
[1767284290933,0.06758474,87963.0,87955.0,0.01136945]
[1767284291392,0.06758474,87963.0,87954.0,0.02222057]
[1767284291608,0.06758474,87963.0,87954.0,0.010851]
[1767284295392,0.07898474,87969.0,87954.0,0.02222057]
[1767284295598,0.06758474,87967.0,87954.0,0.02222057]
[1767284295835,0.02455164,87966.0,87954.0,0.02222057]
[1767284296759,0.02455164,87966.0,87954.0,0.010851]
[1767284296970,0.02455164,87966.0,87954.0,0.02222057]
[1767284297179,0.02455164,87966.0,87954.0,0.010851]
[1767284297388,0.09213638,87966.0,87954.0,0.010851]
[1767284297593,0.02455164,87965.0,87954.0,0.02222057]
[1767284298042,0.02455164,87965.0,87954.0,0.010851]
[1767284298736,0.02455164,87965.0,87954.0,0.02222057]
[1767284299171,0.02455164,87965.0,87954.0,0.010851]
[1767284299342,0.02455164,87965.0,87954.0,0.02222057]
[1767284300033,0.09213638,87965.0,87954.0,0.02222057]
[1767284300267,0.02455164,87964.0,87954.0,0.02222057]
[1767284300481,0.02455164,87964.0,87955.0,0.01136945]
[1767284300919,0.02455164,87964.0,87954.0,0.010851]
[1767284301127,0.02455164,87964.0,87955.0,0.01136945]
[1767284301336,0.02455164,87964.0,87954.0,0.010851]
[1767284301561,0.02455164,87964.0,87954.0,0.02222057]
[1767284301769,0.02455164,87964.0,87954.0,0.010851]
[1767284302194,0.02455164,87964.0,87954.0,0.02222057]
[1767284303045,0.02455164,87964.0,87954.0,0.010851]
[1767284303471,0.02455164,87964.0,87954.0,0.02222057]
[1767284304398,0.02455164,87964.0,87955.0,0.01136945]
[1767284304944,0.02455164,87964.0,87956.0,0.01136932]
[1767284305392,0.02455164,87964.0,87955.0,0.06821665]
[1767284305776,0.02455164,87964.0,87955.0,0.01136945]
[1767284306333,0.06758474,87965.0,87955.0,0.01136945]
[1767284306535,0.06758474,87965.0,87956.0,0.01136932]
[1767284306740,0.06758474,87965.0,87955.0,0.01136945]
[1767284306942,0.06758474,87965.0,87956.0,0.01136932]
[1767284307183,0.06758474,87965.0,87954.0,0.02222057]
[1767284307388,0.06758474,87965.0,87954.0,0.010851]
[1767284307519,0.06758474,87965.0,87954.0,0.02222057]
[1767284307715,0.44441407,87964.0,87954.0,0.010851]
[1767284307919,0.06758474,87965.0,87952.0,0.0114]
[1767284310579,0.44441407,87962.0,87952.0,0.0114]
[1767284311188,0.51453927,87962.0,87952.0,0.0114]
[1767284311406,0.0701252,87962.0,87952.0,0.0114]
[1767284312215,0.51453927,87962.0,87952.0,0.0114]
[1767284312580,0.0701252,87961.0,87952.0,0.0114]
[1767284315927,0.0701252,87961.0,87950.0,0.0001473]
[1767284315928,0.0815252,87961.0,87950.0,0.0001473]
[1767284316131,0.0701252,87956.0,87948.0,0.0004]
[1767284316264,0.08149452,87956.0,87942.0,0.0004]
[1767284316466,0.51453927,87952.0,87942.0,0.0004]
[1767284316670,0.0701252,87952.0,87942.0,0.0004]
[1767284317391,0.44441407,87960.0,87952.0,0.000549]
[1767284317392,0.0701252,87959.0,87952.0,0.000549]
[1767284317824,0.0701252,87959.0,87943.0,0.011371]
[1767284318222,0.02452202,87958.0,87942.0,0.01177113]
[1767284318599,0.02452202,87958.0,87943.0,0.011371]
[1767284319394,0.02452202,87958.0,87942.0,0.0004]
[1767284319395,0.0701252,87957.0,87942.0,0.0004]
[1767284319609,0.02452202,87956.0,87942.0,0.01177113]
[1767284319736,0.02452202,87956.0,87942.0,0.0004]
[1767284320412,0.02452202,87956.0,87942.0,0.01177113]
[1767284320616,0.02452202,87956.0,87942.0,0.0004]
[1767284320811,0.0701252,87955.0,87942.0,0.0004]
[1767284320967,0.0114,87954.0,87942.0,0.0004]
[1767284321372,0.0114,87954.0,87942.0,0.01177113]
[1767284321586,0.0114,87954.0,87943.0,0.011371]
[1767284321811,0.0114,87954.0,87942.0,0.01177113]
[1767284322057,0.0114,87954.0,87942.0,0.0004]
[1767284322405,0.0114,87954.0,87943.0,0.06710054]
[1767284322773,0.0114,87954.0,87942.0,0.0004]
[1767284323391,0.0114,87954.0,87943.0,0.011371]
[1767284324112,0.0114,87954.0,87942.0,0.01177113]
[1767284324703,0.0114,87954.0,87942.0,0.07887167]
[1767284325375,0.0114,87954.0,87942.0,0.0004]
[1767284325376,0.0701252,87953.0,87942.0,0.0004]
[1767284325545,0.0701252,87951.0,87942.0,0.0004]
[1767284325762,0.0701252,87951.0,87942.0,0.01177113]
[1767284325938,0.0701252,87951.0,87942.0,0.0004]
[1767284326285,0.0701252,87951.0,87942.0,0.01177113]
[1767284326490,0.0701252,87951.0,87942.0,0.0004]
[1767284327263,0.0701252,87951.0,87942.0,0.01177113]
[1767284327912,0.010851,87954.0,87942.0,0.01177113]
[1767284328119,0.010851,87954.0,87943.0,0.07847154]
[1767284328320,0.010851,87954.0,87943.0,0.011371]
[1767284328533,0.0809762,87954.0,87944.0,0.01137087]
[1767284328739,0.0809762,87954.0,87943.0,0.011371]
[1767284329064,0.0809762,87954.0,87942.0,0.01177113]
[1767284329286,0.0809762,87954.0,87943.0,0.011371]
[1767284329846,0.0809762,87954.0,87944.0,0.01137087]
[1767284330059,0.0809762,87954.0,87943.0,0.011371]
[1767284330260,0.0809762,87954.0,87944.0,0.01137087]
[1767284330426,0.010851,87954.0,87946.0,0.05685306]
[1767284330644,0.010851,87954.0,87947.0,0.01137048]
[1767284331285,0.0701252,87960.0,87948.0,0.01137035]
[1767284331463,0.03591083,87959.0,87948.0,0.01137035]
[1767284331681,0.02451083,87958.0,87947.0,0.01137048]
[1767284332579,0.02451083,87958.0,87948.0,0.01137035]
[1767284332965,0.02451083,87958.0,87947.0,0.01137048]
[1767284333170,0.02451083,87958.0,87948.0,0.01137035]
[1767284333401,0.02451083,87958.0,87947.0,0.01137048]
[1767284335398,0.02451083,87958.0,87948.0,0.01137035]
[1767284335602,0.02451083,87958.0,87947.0,0.01137048]
[1767284336216,0.02451083,87958.0,87948.0,0.01137035]
[1767284337592,0.0114,87957.0,87948.0,0.0114761]
[1767284337748,0.02451083,87956.0,87948.0,0.0114761]
[1767284338379,0.07096879,87955.0,87948.0,0.00010575]
[1767284338586,0.07096879,87950.0,87940.0,0.01137138]
[1767284338826,0.0710169,87950.0,87940.0,0.01137138]
[1767284339261,0.0710169,87950.0,87941.0,0.01151856]
[1767284339409,0.0710169,87950.0,87942.0,0.01177113]
[1767284340032,4.811e-05,87950.0,87942.0,0.01177113]
[1767284340235,4.811e-05,87950.0,87942.0,0.0004]
[1767284340738,0.01144811,87950.0,87942.0,0.0004]
[1767284341578,0.01144811,87950.0,87938.0,0.01177164]
[1767284341579,0.07096879,87941.0,87938.0,0.0004]
[1767284341808,0.0114,87942.0,87938.0,0.0004]
[1767284343246,0.01085,87942.0,87938.0,0.0004]
[1767284345887,0.0114,87943.0,87938.0,0.06751386]
[1767284346033,0.0114,87943.0,87939.0,0.01137151]
[1767284346242,0.0114,87943.0,87940.0,0.01137138]
[1767284346622,0.0114,87943.0,87938.0,0.0004]
[1767284346623,0.000549,87940.0,87938.0,0.0004]
[1767284347122,0.08236879,87943.0,87938.0,0.0004]
[1767284347705,0.0114,87943.0,87938.0,0.0004]
[1767284347909,0.0114,87943.0,87933.0,0.01137229]
[1767284348124,0.0114,87943.0,87934.0,0.01137216]
[1767284348535,0.0114,87943.0,87938.0,0.01137164]
[1767284348945,0.0114,87943.0,87937.0,0.01137177]
[1767284349791,0.0114,87943.0,87936.0,0.0113719]
[1767284350371,0.0114,87943.0,87937.0,0.01137177]
[1767284351517,0.0114,87943.0,87938.0,0.01137164]
[1767284352184,0.0114,87943.0,87937.0,0.01137177]
[1767284352391,0.0114,87943.0,87938.0,0.01137164]
[1767284352596,0.0114,87943.0,87937.0,0.01137177]
[1767284352799,0.0114,87943.0,87938.0,0.01137164]
[1767284353647,5.025e-05,87943.0,87939.0,0.01137151]
[1767284354272,5.025e-05,87943.0,87938.0,0.01137164]
[1767284354492,5.025e-05,87943.0,87939.0,0.01137151]
[1767284354707,5.025e-05,87943.0,87938.0,0.01137164]
[1767284355960,0.0114,87946.0,87938.0,0.01137164]
[1767284356758,0.0114,87946.0,87937.0,0.01137177]
[1767284356911,0.0114,87946.0,87938.0,0.01137164]
[1767284357168,0.0114,87946.0,87937.0,0.01137177]
[1767284357914,0.0114,87946.0,87938.0,0.01137164]
[1767284358119,0.0114,87946.0,87937.0,0.01137177]
[1767284358269,0.0114,87946.0,87938.0,0.01137164]
[1767284358736,0.0114,87946.0,87937.0,0.01137177]
[1767284359021,0.0114,87946.0,87938.0,0.01137164]
[1767284360527,0.0114,87946.0,87939.0,0.01137151]
[1767284361295,0.0114,87946.0,87938.0,0.01137164]
[1767284361520,0.0114,87946.0,87939.0,0.01137151]
[1767284361695,0.0114,87946.0,87938.0,0.01137164]
[1767284362521,0.0114,87946.0,87939.0,0.01137151]
[1767284362930,0.0114,87946.0,87940.0,0.01137138]
[1767284363336,0.0114,87946.0,87939.0,0.01137151]
[1767284363539,0.0114,87946.0,87940.0,0.01137138]
[1767284364636,0.010983,87946.0,87940.0,0.01137138]
[1767284365229,0.010983,87946.0,87939.0,0.01137151]
[1767284365660,0.010983,87946.0,87940.0,0.01137138]
[1767284365863,0.000549,87940.0,87938.0,0.01137164]
[1767284366176,0.010983,87946.0,87938.0,0.01137164]